bitfinex-derivatives/quotes_SOLF0:USTF0_20250808
["timestamp","ask_amount","ask_price","bid_price","bid_amount"]
[1754673937517,3.25,176.63,176.6,9.62081268]
[1754673937722,3.25,176.62,176.61,3.04]
[1754673937914,3.25,176.74,176.61,3.04]
[1754673938115,3.25,176.72,176.64,6.58081268]
[1754673938421,8.91,176.67,176.66,3.04]
[1754673939009,5.6592,176.69,176.66,3.04]
[1754673939214,3.25,176.71,176.67,3.04]
[1754673939417,3.25,176.71,176.68,3.04]
[1754673939618,3.25,176.69,176.68,3.04]
[1754673940020,3.25,176.69,176.66,9.62081268]
[1754673940222,3.25,176.68,176.66,6.58081268]
[1754673940417,3.25,176.68,176.64,9.62081268]
[1754673941013,5.6602,176.66,176.65,3.04]
[1754673942117,5.6604,176.65,176.64,6.58081268]
[1754673942314,8.9104,176.65,176.64,9.62081268]
[1754673942716,5.6604,176.65,176.64,9.62081268]
[1754673943322,3.83438561,176.66,176.65,3.04]
[1754673943522,3.83438561,176.69,176.65,3.04]
[1754673943723,7.08438561,176.68,176.66,6.58081268]
[1754673943924,7.08438561,176.67,176.66,9.62081268]
[1754673944120,12.74408561,176.67,176.66,9.62081268]
[1754673944420,12.74408561,176.67,176.66,6.58081268]
[1754673944615,3.25,176.65,176.64,3.04]
[1754673944821,3.25,176.65,176.58,151.82690446]
[1754673944822,3.25,176.64,176.63,4.03690446]
[1754673945019,12.74508561,176.64,176.63,4.03690446]
[1754673945822,3.83438561,176.64,176.63,7.07690446]
[1754673946015,3.83438561,176.64,176.63,12.73790446]
[1754673946214,4.03690446,176.74,176.64,3.04]
[1754673946416,8.9099,176.67,176.66,3.04]
[1754673946615,12.76730822,176.67,176.66,3.04]
[1754673946813,3.85740822,176.67,176.66,3.04]
[1754673947026,3.85740822,176.67,176.66,9.61836913]
[1754673948216,3.25,176.66,176.62,9.61836913]
[1754673948519,3.85740822,176.65,176.63,3.04]
[1754673948717,3.25,176.67,176.63,6.57836913]
[1754673948718,3.85740822,176.64,176.63,6.57836913]
[1754673949222,3.85740822,176.64,176.63,9.61836913]
[1754673949620,3.85740822,176.64,176.63,15.27936913]
[1754673950125,5.6593,176.69,176.64,3.04]
[1754673950422,3.25,176.74,176.66,3.04]
[1754673951620,5.6597,176.67,176.66,3.04]
[1754673951826,8.9097,176.67,176.66,3.04]
[1754673952123,5.6597,176.67,176.66,3.04]
[1754673952515,5.6597,176.67,176.65,6.57836913]
[1754673952516,8.9095,176.68,176.67,3.04]
[1754673953523,3.25,176.68,176.67,3.04]
[1754673955228,8.9094,176.68,176.67,3.04]
[1754673955621,389.53141918,176.78,176.68,3.04]
[1754673955821,3.25,176.77,176.7,3.04]
[1754673957424,380.06,176.78,176.71,3.04]
[1754673957624,3.25,176.73,176.71,9.61836913]
[1754673957820,3.25,176.73,176.72,3.04]
[1754673958020,5.6585,176.71,176.7,9.61836913]
[1754673958816,5.6582,176.72,176.7,6.57836913]
[1754673959022,8.9082,176.72,176.71,3.04]
[1754673960028,5.6585,176.71,176.7,6.57836913]
[1754673960224,3.25,176.71,176.7,9.61836913]
[1754673960524,9.47141918,176.78,176.72,5.6579]
[1754673960827,5.657,176.76,176.75,3.04]
[1754673961026,5.657,176.76,176.74,6.57836913]
[1754673961224,3.25,176.78,176.74,6.57836913]
[1754673961526,3.25,176.8,176.77,3.04]
[1754673961723,5.6561,176.79,176.77,3.04]
[1754673962030,3.25,176.78,176.77,3.04]
[1754673962330,8.9062,176.78,176.77,3.04]
[1754673962922,8.9065,176.77,176.76,9.61836913]
[1754673963923,5.6563,176.78,176.76,6.57836913]
[1754673964125,3.25,176.78,176.67,3.04]
[1754673964430,3.25,176.78,176.71,6.57836913]
[1754673964431,3.25,176.77,176.71,6.57836913]
[1754673964629,6.57836913,176.82,176.71,6.57836913]
[1754673964630,9.57118358,176.74,176.72,3.04]
[1754673964925,9.57118358,176.74,176.73,3.04]
[1754673965318,3.25,176.74,176.73,3.04]
[1754673966123,8.9075,176.74,176.73,3.04]
[1754673967728,6.31833908,176.75,176.73,3.04]
[1754673967927,6.31833908,176.75,176.74,7.19375209]
[1754673968122,18.28831918,176.76,176.75,3.16]
[1754673968323,8.8169,176.76,176.75,3.16]
[1754673968728,5.6565,176.77,176.75,3.16]
[1754673969030,6.31582273,176.78,176.76,7.19375209]
[1754673969232,6.31582273,176.78,176.77,3.16]
[1754673969629,9.47141918,176.8,176.77,3.16]
[1754673969827,9.47141918,176.81,176.8,3.16]
[1754673970224,12.63141918,176.81,176.8,3.16]
[1754673970429,3.16,176.81,176.8,3.16]
[1754673970625,8.8156,176.81,176.8,3.16]
[1754673971925,8.8156,176.81,176.8,7.19375209]
[1754673972125,18.28701918,176.81,176.8,7.19375209]
[1754673972432,3.16,176.81,176.8,7.19375209]
[1754673972832,8.8154,176.81,176.8,3.16]
[1754673973025,8.8154,176.81,176.8,7.19375209]
[1754673973632,8.8154,176.81,176.8,4.03375209]
[1754673977134,18.28681918,176.81,176.8,4.03375209]
[1754673977734,8.8154,176.81,176.8,4.03375209]
[1754673978233,8.8154,176.81,176.8,7.19375209]
[1754673980632,5.6556,176.8,176.79,2.67]
[1754673980826,8.8156,176.8,176.79,9.86375209]
[1754673981339,8.8156,176.8,176.79,2.67]
[1754673984541,18.28701918,176.8,176.79,2.67]
[1754673985126,8.8156,176.8,176.79,2.67]
[1754673986329,3.16,176.8,176.67,4.03375209]
[1754673986536,3.16,176.76,176.72,3.16]
[1754673986734,3.16,176.75,176.72,3.16]
[1754673986927,12.62059698,176.77,176.72,3.16]
[1754673987130,3.16,176.76,176.72,4.03375209]
[1754673987337,3.16,176.76,176.73,3.16]
[1754673987537,12.62059698,176.76,176.73,3.16]
[1754673987733,9.46059698,176.77,176.73,3.16]
[1754673988135,5.6569,176.76,176.73,3.16]
[1754673988339,9.46059698,176.78,176.75,3.16]
[1754673988634,12.62855891,176.83,176.67,15.35315209]
[1754673988635,9.46059698,176.81,176.78,3.16]
[1754673988839,15.11579698,176.82,176.8,4.03375209]
[1754673989041,18.27579698,176.82,176.81,3.16]
[1754673989643,8.8152,176.82,176.81,3.16]
[1754673990144,8.8153,176.81,176.8,4.03375209]
[1754673990339,9.46577023,176.81,176.78,4.03375209]
[1754673990545,3.16,176.79,176.78,7.19375209]
[1754673990844,3.16,176.8,176.79,3.16]
[1754673991240,9.4658685,176.8,176.79,3.16]
[1754673991539,12.6258685,176.81,176.79,3.16]
[1754673991844,18.2811685,176.81,176.8,7.19375209]
[1754673992946,12.6258685,176.81,176.8,7.19375209]
[1754673993146,9.4658685,176.81,176.8,4.03375209]
[1754673993346,12.6258685,176.81,176.8,4.03375209]
[1754673993542,8.8153,176.81,176.8,4.03375209]
[1754673994441,8.8153,176.81,176.8,7.19375209]
[1754673996748,8.8153,176.81,176.8,3.16]
[1754673996941,3.16,176.81,176.78,4.03375209]
[1754673997146,3.16,176.81,176.77,3.01]
[1754673997350,3.16,176.81,176.76,3.01]
[1754673997549,9.48477502,176.77,176.74,4.03375209]
[1754673997754,12.62855891,176.81,176.74,3.01]
[1754673997755,12.62477502,176.75,176.74,3.01]
[1754673998348,8.7972,176.75,176.74,3.01]
[1754674000552,8.7978,176.73,176.72,7.04375209]
[1754674000752,18.29754959,176.73,176.72,7.04375209]
[1754674000945,15.15754959,176.73,176.72,7.04375209]
[1754674001654,9.49974959,176.73,176.72,7.04375209]
[1754674002154,15.15754959,176.73,176.72,7.04375209]
[1754674003050,5.6578,176.73,176.72,7.04375209]
[1754674003256,5.6576,176.74,176.73,3.01]
[1754674004156,3.14,176.77,176.73,3.01]
[1754674004452,9.50937368,176.75,176.73,8.6678]
[1754674004648,15.76855891,176.82,176.73,3.01]
[1754674005052,15.76855891,176.82,176.76,5.6569]
[1754674005254,3.14,176.81,176.77,3.01]
[1754674005754,5.6553,176.81,176.8,4.03375209]
[1754674006151,8.7953,176.81,176.8,4.03375209]
[1754674006348,8.7953,176.81,176.8,0.49903341]
[1754674008056,8.7953,176.81,176.8,3.50903341]
[1754674008851,8.7953,176.81,176.8,7.04375209]
[1754674009257,8.7953,176.81,176.8,4.03375209]
[1754674009458,8.7961,176.79,176.78,7.04375209]
[1754674009847,5.6561,176.79,176.78,7.04375209]
[1754674010751,5.6563,176.78,176.73,5.6577]
[1754674010946,8.7963,176.78,176.77,7.04375209]
[1754674011156,5.6563,176.78,176.77,7.04375209]
[1754674012459,5.656,176.79,176.77,7.04375209]
[1754674012653,8.796,176.79,176.78,7.04375209]
[1754674012847,3.14,176.81,176.78,4.03375209]
[1754674013055,8.7953,176.81,176.8,7.04375209]
[1754674015550,5.6559,176.79,176.75,5.657]
[1754674015759,5.6559,176.79,176.78,4.03375209]
[1754674015956,8.7959,176.79,176.78,7.04375209]
[1754674016554,3.14,176.79,176.78,7.04375209]
[1754674018161,8.7959,176.79,176.78,7.04375209]
[1754674021065,5.6565,176.77,176.76,4.03375209]
[1754674021261,3.14,176.77,176.74,4.03375209]
[1754674021466,3.14,176.77,176.74,7.04375209]
[1754674021764,5.6572,176.75,176.74,7.04375209]
[1754674021964,8.7972,176.75,176.74,7.04375209]
[1754674022469,5.6572,176.75,176.74,3.01]
[1754674022658,5.6572,176.75,176.74,7.04375209]
[1754674023366,12.62855891,176.79,176.75,3.01]
[1754674023367,5.657,176.76,176.75,3.01]
[1754674023568,3.14,176.78,176.76,3.01]
[1754674023766,3.14,176.78,176.77,7.04375209]
[1754674024467,8.7962,176.78,176.77,7.04375209]
[1754674024668,3.14,176.78,176.75,3.01]
[1754674024862,3.14,176.78,176.75,7.04375209]
[1754674025665,5.6569,176.76,176.75,7.04375209]
[1754674025859,5.6569,176.76,176.67,382.45375209]
[1754674025860,3.14,176.75,176.73,4.03375209]
[1754674026063,12.65616716,176.74,176.73,7.27375209]
[1754674026262,9.51616716,176.74,176.73,7.27375209]
[1754674026463,12.65616716,176.74,176.73,7.27375209]
[1754674026668,3.14,176.74,176.73,7.27375209]
[1754674026963,3.14,176.71,176.69,4.03375209]
[1754674027159,3.14,176.71,176.7,3.24]
[1754674027364,12.65699716,176.71,176.7,3.24]
[1754674027560,3.14,176.71,176.67,146.66]
[1754674027760,9.51631621,176.68,176.67,150.69375209]
[1754674027964,9.51631621,176.68,176.67,7.27375209]
[1754674028266,15.17551621,176.69,176.67,4.03375209]
[1754674028466,9.51631621,176.69,176.68,3.24]
[1754674028859,12.10679787,176.69,176.67,3.73698083]
[1754674029064,2.59048166,176.68,176.67,3.73698083]
[1754674030070,2.59048166,176.68,176.67,9.39668083]
[1754674030575,2.59048166,176.68,176.67,9.69345209]
[1754674030980,2.59048166,176.68,176.67,7.27375209]
[1754674031482,2.59048166,176.68,176.67,4.03375209]
[1754674031984,5.73048166,176.68,176.67,4.03375209]
[1754674032282,5.73048166,176.68,176.67,7.27375209]
[1754674032580,2.59048166,176.68,176.67,7.27375209]
[1754674032780,2.59048166,176.68,176.67,12.93345209]
[1754674033170,9.51631621,176.73,176.71,3.24]
[1754674033372,12.62855891,176.78,176.72,4.03375209]
[1754674033579,3.14,176.76,176.75,4.03375209]
[1754674033780,5.6569,176.76,176.75,4.03375209]
[1754674034378,3.14,176.76,176.75,4.03375209]
[1754674035485,3.14,176.76,176.75,7.27375209]
[1754674035880,3.14,176.76,176.75,4.03375209]
[1754674036479,3.14,176.76,176.75,7.27375209]
[1754674038787,3.14,176.76,176.75,12.93095209]
[1754674038987,3.14,176.76,176.75,7.27375209]
[1754674039186,3.14,176.78,176.76,3.24]
[1754674039385,3.14,176.79,176.78,3.24]
[1754674040589,12.62855891,176.83,176.77,4.03375209]
[1754674040890,12.62855891,176.83,176.76,4.03375209]
[1754674040891,3.14,176.83,176.82,7.27375209]
[1754674041193,12.62855891,176.87,176.84,3.24]
[1754674041394,5.654,176.85,176.84,4.03375209]
[1754674041583,5.654,176.85,176.84,1.1387368]
[1754674042988,15.76855891,176.86,176.81,4.03375209]
[1754674043294,3.14,176.85,176.81,4.03375209]
[1754674043793,3.14,176.85,176.81,0.03509854]
[1754674044000,3.14,176.82,176.79,3.24]
[1754674044293,3.14,176.82,176.78,4.03375209]
[1754674044489,5.6559,176.79,176.78,4.03375209]
[1754674044694,3.14,176.79,176.78,7.27375209]
[1754674044890,3.14,176.81,176.78,7.27375209]
[1754674045090,12.62855891,176.85,176.8,4.03375209]
[1754674045296,3.14,176.84,176.82,3.24]
[1754674045489,3.14,176.83,176.82,3.24]
[1754674045685,8.7946,176.83,176.82,3.24]
[1754674046193,3.14,176.83,176.82,7.27375209]
[1754674046390,3.14,176.84,176.83,3.24]
[1754674046791,8.7943,176.84,176.83,3.24]
[1754674046989,3.14,176.84,176.83,3.24]
[1754674047491,8.7943,176.84,176.83,3.24]
[1754674047793,3.14,176.87,176.83,3.24]
[1754674048097,3.14,176.84,176.83,3.24]
[1754674048488,8.7943,176.84,176.83,3.24]
[1754674048909,3.14,176.84,176.83,3.24]
[1754674050398,8.7943,176.84,176.83,3.24]
[1754674050600,3.14,176.84,176.83,3.24]
[1754674051392,3.14,176.84,176.79,5.6558]
[1754674051600,5.6546,176.83,176.82,7.27375209]
[1754674051798,8.7946,176.83,176.82,7.27375209]
[1754674053397,3.14,176.83,176.82,7.27375209]
[1754674053899,5.6553,176.81,176.8,7.27375209]
[1754674054199,8.7953,176.81,176.8,7.27375209]
[1754674054399,3.14,176.81,176.8,7.27375209]
[1754674054600,8.7953,176.81,176.8,7.27375209]
[1754674054797,3.14,176.81,176.8,7.27375209]
[1754674055197,15.1352978,176.83,176.8,7.27375209]
[1754674055403,9.4804978,176.83,176.82,4.03375209]
[1754674055605,12.6204978,176.83,176.82,7.27375209]
[1754674057006,3.14,176.83,176.82,7.27375209]
[1754674057305,8.7946,176.83,176.82,7.27375209]
[1754674057508,9.4804978,176.84,176.8,4.03375209]
[1754674057710,3.06,176.81,176.8,7.11375209]
[1754674058003,9.4804978,176.84,176.8,7.11375209]
[1754674058205,9.4804978,176.84,176.81,3.08]
[1754674058405,3.06,176.83,176.81,3.08]
[1754674058804,3.06,176.82,176.81,3.08]
[1754674060808,3.06,176.83,176.8,4.03375209]
[1754674061013,3.06,176.82,176.8,4.03375209]
[1754674061512,3.06,176.81,176.8,4.03375209]
[1754674061810,3.06,176.81,176.8,7.11375209]
[1754674062606,3.06,176.81,176.8,4.03375209]
[1754674062805,3.06,176.81,176.78,7.11375209]
[1754674063004,3.06,176.79,176.78,7.11375209]
[1754674063806,5.6554,176.81,176.79,3.08]
[1754674063807,3.06,176.8,176.79,3.08]
[1754674064406,3.06,176.8,176.78,4.03375209]
[1754674064613,3.06,176.8,176.78,7.11375209]
[1754674064806,5.6554,176.81,176.78,7.11375209]
[1754674065011,9.4804978,176.82,176.78,7.11375209]
[1754674065012,3.06,176.8,176.79,3.08]
[1754674070417,9.4804978,176.83,176.79,3.08]
[1754674070617,9.4804978,176.84,176.82,7.11375209]
[1754674070822,12.5404978,176.84,176.83,3.08]
[1754674071420,3.06,176.83,176.82,4.03375209]
[1754674071922,3.06,176.83,176.82,7.11375209]
[1754674074322,12.5404978,176.83,176.82,7.11375209]
[1754674074923,3.06,176.83,176.82,7.11375209]
[1754674075317,12.5404978,176.83,176.82,7.11375209]
[1754674075816,9.4804978,176.83,176.82,12.76875209]
[1754674076019,48.86710211,177.04,176.83,3.08]
[1754674076020,9.4804978,176.85,176.83,3.08]
[1754674076220,3.06,176.87,176.84,7.11375209]
[1754674076430,12.62855891,176.91,176.86,4.03375209]
[1754674076630,3.06,176.88,176.87,3.08]
[1754674081230,3.06,176.9,176.87,3.08]
[1754674081524,3.06,176.9,176.89,7.11375209]
[1754674082426,5.6522,176.91,176.89,7.11375209]
[1754674082427,3.06,176.94,176.9,3.08]
[1754674082628,3.06,176.94,176.93,7.11375209]
[1754674084229,12.62855891,176.98,176.94,3.08]
[1754674084429,3.06,176.95,176.94,3.08]
[1754674084624,5.6508,176.96,176.94,7.11375209]
[1754674084825,12.62855891,177.0,176.95,3.08]
[1754674085024,3.06,177.0,176.97,3.08]
[1754674085720,12.62855891,177.01,176.97,3.08]
[1754674085721,8.7101,176.98,176.97,3.08]
[1754674088224,3.06,176.98,176.97,3.08]
[1754674088429,27.15517222,177.09,176.97,8.73]
[1754674088430,3.11,177.03,176.97,8.73]
[1754674088624,3.11,177.03,177.02,7.08375209]
[1754674088829,8.7582,177.03,177.02,7.08375209]
[1754674089836,3.11,177.03,177.02,7.08375209]
[1754674090438,12.62855891,177.1,177.02,4.03375209]
[1754674090739,3.11,177.04,177.03,3.05]
[1754674092036,8.7579,177.04,177.03,3.05]
[1754674092233,8.7579,177.04,177.03,7.08375209]
[1754674093236,8.7579,177.04,177.03,3.05]
[1754674093538,8.7582,177.03,177.02,7.08375209]
[1754674094637,3.11,177.03,177.0,3.05]
[1754674094832,12.62855891,177.11,177.01,3.05]
[1754674095042,3.11,177.06,177.03,3.05]
[1754674095235,4.03375209,177.11,177.04,3.05]
[1754674095435,4.03375209,177.11,177.03,4.03375209]
[1754674095436,3.11,177.05,177.03,4.03375209]
[1754674095636,3.11,177.02,177.01,7.08375209]
[1754674095839,3.11,177.04,177.02,3.05]
[1754674096034,3.11,177.04,177.03,7.08375209]
[1754674096235,3.11,177.04,177.01,4.03375209]
[1754674096728,3.11,177.04,177.01,7.08375209]
[1754674097238,3.11,177.02,177.01,7.08375209]
[1754674097934,8.7586,177.02,177.01,3.05]
[1754674098138,8.7586,177.02,177.01,7.08375209]
[1754674098731,3.11,177.02,177.01,7.08375209]
[1754674098938,3.11,177.08,177.02,3.05]
[1754674099335,5.6482,177.03,177.02,3.05]
[1754674099532,3.11,177.04,177.03,3.05]
[1754674099934,5.648,177.04,177.03,7.08375209]
[1754674100130,3.11,177.06,177.03,7.08375209]
[1754674100335,3.11,177.05,177.04,3.05]
[1754674101237,8.7576,177.05,177.04,3.05]
[1754674102638,8.7574,177.06,177.04,3.05]
[1754674102842,3.11,177.06,177.05,7.08375209]
[1754674103039,3.11,177.1,177.06,3.05]
[1754674103238,13.44260586,177.13,177.06,3.05]
[1754674103444,8.7566,177.09,177.08,3.05]
[1754674104438,379.86,177.15,177.08,3.05]
[1754674104639,3.11,177.14,177.1,3.05]
[1754674104936,3.11,177.14,177.07,3.08742854]
[1754674104937,5.6466,177.08,177.07,3.08742854]
[1754674105139,8.7566,177.08,177.07,3.05]
[1754674105938,3.11,177.1,177.07,3.05]
[1754674106142,7.14375209,177.17,177.08,7.08375209]
[1754674106343,3.11,177.16,177.08,7.08375209]
[1754674106545,5.6463,177.09,177.08,7.08375209]
[1754674106744,8.7563,177.09,177.08,7.08375209]
[1754674107048,3.11,177.09,177.08,7.08375209]
[1754674107250,141.46,177.18,177.08,4.03375209]
[1754674107451,3.11,177.1,177.09,3.05]
[1754674107949,8.756,177.1,177.09,3.05]
[1754674108150,3.11,177.14,177.08,3.05]
[1754674108553,4.03375209,177.15,177.08,3.05]
[1754674108554,5.6466,177.09,177.08,3.05]
[1754674108759,11.2862,177.2,177.09,4.03375209]
[1754674109059,3.11,177.18,177.11,7.08375209]
[1754674109760,3.11,177.14,177.12,3.05]
[1754674110256,8.7551,177.13,177.12,3.05]
[1754674110857,5.6454,177.12,177.11,4.03375209]
[1754674111056,8.7554,177.12,177.11,7.08375209]
[1754674111256,3.11,177.18,177.12,3.05]
[1754674111456,8.7551,177.13,177.12,3.05]
[1754674111957,5.6451,177.13,177.12,3.05]
[1754674112264,8.7551,177.13,177.12,3.05]
[1754674114263,8.7551,177.13,176.76,5.653]
[1754674114264,3.11,177.14,177.07,3.05]
[1754674114763,5.6464,177.09,177.07,3.05]
[1754674115261,3.11,177.11,177.08,4.03375209]
[1754674115564,3.11,177.14,177.09,3.05]
[1754674115763,3.11,177.19,177.11,3.05]
[1754674116065,3.11,177.18,177.11,3.05]
[1754674116265,5.6454,177.12,177.11,3.05]
[1754674116964,5.6452,177.13,177.11,3.05]
[1754674117259,3.23,177.19,177.13,3.1]
[1754674117565,5.6442,177.16,177.15,7.13375209]
[1754674118266,3.23,177.18,177.16,3.1]
[1754674118468,3.23,177.18,177.17,4.03375209]
[1754674118670,3.23,177.18,177.17,7.13375209]
[1754674118962,8.8735,177.18,177.17,7.13375209]
[1754674119157,379.62,177.25,177.17,4.03375209]
[1754674119360,3.23,177.27,177.21,4.03375209]
[1754674120168,3.23,177.28,177.22,3.1]
[1754674120472,5.6413,177.25,177.22,3.1]
[1754674120771,3.23,177.28,177.22,3.1]
[1754674120966,5.6418,177.24,177.22,3.1]
[1754674121170,8.8718,177.24,177.23,3.1]
[1754674121468,5.6422,177.23,177.2,7.13375209]
[1754674121666,3.23,177.22,177.21,3.1]
[1754674122364,8.8723,177.22,177.21,3.1]
[1754674123368,8.8725,177.21,177.2,4.03375209]
[1754674124072,5.6431,177.19,177.18,7.13375209]
[1754674124367,3.23,177.2,177.19,3.1]
[1754674124671,3.23,177.2,177.17,7.13375209]
[1754674125173,8.8731,177.19,177.18,3.1]
[1754674125362,5.6431,177.19,177.18,3.1]
[1754674126372,8.8731,177.19,177.18,3.1]
[1754674126570,8.8738,177.17,177.16,7.13375209]
[1754674127565,8.8744,177.15,177.14,15.57]
[1754674127768,3.23,177.19,177.14,18.67]
[1754674128067,5.6441,177.16,177.15,3.1]
[1754674128268,8.8741,177.16,177.15,3.1]
[1754674128470,3.23,177.16,177.14,22.74194962]
[1754674128671,3.23,177.16,177.14,18.70819753]
[1754674128973,5.6444,177.15,177.14,18.70819753]
[1754674130066,8.8744,177.15,177.14,18.70819753]
[1754674130467,8.8744,177.15,177.14,15.60819753]
[1754674131469,8.8744,177.15,177.14,18.70819753]
[1754674133070,8.8744,177.15,177.14,15.60819753]
[1754674135475,8.8744,177.15,177.14,7.11159753]
[1754674136069,8.8744,177.15,177.14,9.753e-05]
[1754674137380,5.6463,177.09,177.08,3.1]
[1754674137579,8.8763,177.09,177.08,3.1]
[1754674137778,5.6476,177.06,177.03,7.13375209]
[1754674138082,5.6476,177.06,177.04,3.1]
[1754674138083,3.23,177.06,177.04,3.1]
[1754674138473,3.23,177.1,177.04,3.1]
[1754674138679,0.03855949,177.07,177.04,3.1]
[1754674138972,0.03855949,177.07,177.05,4.03375209]
[1754674139177,0.03855949,177.07,177.06,3.1]
[1754674141874,5.68555949,177.07,177.06,3.1]
[1754674142879,5.68555949,177.07,177.04,4.03375209]
[1754674142880,8.8776,177.05,177.04,3.1]
[1754674143175,3.23,177.04,177.01,3.1]
[1754674143380,3.23,177.03,177.02,3.1]
[1754674143780,5.6477,177.05,177.0,4.03375209]
[1754674143981,3.26808604,177.04,177.03,3.1]
[1754674144379,5.68598604,177.04,177.03,3.1]
[1754674144582,8.91598604,177.04,177.03,3.1]
[1754674145378,0.03808604,177.04,177.03,3.1]
[1754674146887,5.68598604,177.04,177.03,3.1]
[1754674147683,8.70598604,177.04,177.03,3.1]
[1754674148279,0.03808604,177.04,177.03,3.1]
[1754674150282,5.68598604,177.04,177.03,3.1]
[1754674150586,3.05808604,177.04,177.03,3.1]
[1754674152082,8.70598604,177.04,177.03,3.1]
[1754674152987,3.05808604,177.04,177.03,3.1]
[1754674154189,0.03808604,177.04,177.03,3.1]
[1754674154591,0.03808604,177.04,177.03,7.13375209]
[1754674155690,3.05808604,177.04,177.03,7.13375209]
[1754674155890,0.03808604,177.04,177.03,7.13375209]
[1754674157691,3.05808604,177.04,177.02,3.04]
[1754674158391,3.02,177.03,177.02,3.04]
[1754674159682,5.6487,177.02,176.99,4.03375209]
[1754674159887,3.02,177.01,177.0,3.04]
[1754674161796,3.02,177.03,176.97,4.03375209]
[1754674162294,3.02,177.03,176.98,3.04]
[1754674162491,8.6694,177.0,176.98,3.04]
[1754674163296,3.02,177.0,176.98,3.04]
[1754674163791,8.6692,177.0,176.98,3.04]
[1754674163997,8.6692,177.0,176.99,3.04]
[1754674164196,0.04254335,177.02,177.0,3.04]
[1754674164396,3.02,177.01,177.0,3.04]
[1754674168693,8.6689,177.01,177.0,3.04]
[1754674168888,3.02,177.01,177.0,3.04]
[1754674172200,0.04254335,177.02,177.0,3.04]
[1754674172201,3.06254335,177.02,177.01,3.04]
[1754674172400,3.06254335,177.02,177.01,7.07375209]
[1754674174899,8.71114335,177.02,177.01,3.04]
[1754674175498,3.02,177.01,176.98,3.04]
[1754674175900,5.6494,177.0,176.97,4.03375209]
[1754674176100,8.7794,177.0,176.99,3.04]
[1754674176896,5.6496,176.99,176.97,7.04375209]
[1754674177093,3.13,176.99,176.98,3.01]
[1754674180094,18.18835377,176.99,176.98,3.01]
[1754674180399,3.13,176.98,176.95,3.01]
[1754674180598,9.40885377,176.98,176.95,3.01]
[1754674180905,3.13,176.97,176.95,3.01]
[1754674181100,3.13,176.96,176.95,3.01]
[1754674182806,9.40885377,176.97,176.96,3.01]
[1754674182999,9.44764627,176.98,176.96,7.04375209]
[1754674183199,9.40885377,176.97,176.96,4.03375209]
[1754674183403,9.44764627,176.98,176.96,4.03375209]
[1754674183608,12.57764627,176.98,176.85,394.86175209]
[1754674183809,9.40885377,176.97,176.96,4.03375209]
[1754674184007,12.57764627,176.98,176.97,3.01]
[1754674184207,3.1687925,176.98,176.97,3.01]
[1754674184407,12.66436493,176.98,176.97,3.01]
[1754674184905,3.1687925,176.98,176.97,3.01]
[1754674185110,12.66347606,176.98,176.97,3.01]
[1754674185314,3.1687925,176.98,176.97,3.01]
[1754674185505,3.1687925,176.98,176.96,4.03375209]
[1754674185704,12.62645533,176.97,176.96,3.01]
[1754674186705,3.13,176.96,176.93,3.01]
[1754674186915,3.13,176.94,176.93,3.01]
[1754674187519,9.49775967,176.95,176.93,3.01]
[1754674187714,12.62775967,176.95,176.94,4.03375209]
[1754674187916,12.62775967,176.95,176.94,7.04375209]
[1754674188215,12.62775967,176.98,176.95,3.01]
[1754674188411,12.62775967,176.98,176.97,4.03375209]